{"text_format":"1","workbook":"xlsx","n_sheets":3,"sheets":["Nadzorna plošča","Seznam opreme","Vrtilni podatki"],"not_rendered":{"charts":0,"images":0,"macros":1,"external_links":0,"defined_names":13,"comments":0,"pivot_tables":1},"unopened":[],"bounds":{"document_bytes":16777216,"sheet_cells":100000,"rows_first":2000,"rows_last":500,"rows_between":2000,"halvings":0,"cell_chars":16384,"cell_head_chars":4096},"cells_cut":0,"cells_raw":0,"read":"whole","date_system":"1900"}

{"sheet":"Nadzorna plošča","index":0,"n_rows":20,"n_cols":6,"rows_kept":20,"cut":false,"hidden":false,"merged":[]}
[null,"Nadzorna plošča"]
[]
[]
[null,null,null,null,null,"Skupno število"]
[null,null,null,null,null,{"$f":"GETPIVOTDATA(\"Število\",'Vrtilni podatki'!$B$11)","v":3}]
[]
[null,null,null,null,null,"Skupni mesečni stroški"]
[null,null,null,null,null,{"$f":"GETPIVOTDATA(\"Skupni mesečni stroški \",'Vrtilni podatki'!$B$11)","v":1765.5943035068672}]
[]
[null,null,null,null,null,"Stroški poslovanja"]
[null,null,null,null,null,{"$f":"GETPIVOTDATA(\"Stroški poslovanja\",'Vrtilni podatki'!$B$11)","v":605}]
[]
[null,null,null,null,null,"Mesečna amortizacija"]
[null,null,null,null,null,{"$f":"GETPIVOTDATA(\"Mesečna amortizacija\",'Vrtilni podatki'!$B$11)","v":659.72222222222217}]
[]
[null,null,null,null,null,"Znesek plačila"]
[null,null,null,null,null,{"$f":"GETPIVOTDATA(\"Znesek plačila\",'Vrtilni podatki'!$B$11)","v":1160.5943035068672}]
[]
[null,null,null,null,null,"Trenutna vrednost"]
[null,null,null,null,null,{"$f":"GETPIVOTDATA(\"Trenutna vrednost \",'Vrtilni podatki'!$B$11)","v":36534.931506849316}]

{"sheet":"Seznam opreme","index":1,"n_rows":9,"n_cols":20,"rows_kept":9,"cut":false,"hidden":false,"merged":[]}
[null,"Seznam opreme"]
[]
[null,null,null,"Označi, če so mesečna plačila nižja od: ",20]
[]
[null,"Številka sredstva ali serijska številka","Opis elementa\n(Tip in model)","Lokacija","Stanje","Prodajalec","Preostalo št. let opravljanja storitev","Začetna vrednost","Polog","Datum nakupa ali zakupa","Obdobje veljavnosti posojila \n(Leta)","Obrestna mera posojila","Mesečni stroški poslovanja","Pričakovana vrednost ob zaključku pogodbe","Preostalih mesečnih obrokov","Mesečni obrok","Skupni mesečni stroški","Letna amortizacija (Ravna črta)","Mesečna amortizacija (Ravna črta)","Trenutna vrednost"]
[null,123,"Izdelava modela 1","Glavna panoga","Dobro","Lokalno",5,30000,5000,"2011-01-15",4,0.1,200,20000,{"$f":"IFERROR(SUMPRODUCT(--(DAY(ROW(OFFSET($A$1,,,DATE(YEAR(OPREMA[[#This Row],[Datum nakupa ali zakupa]])+OPREMA[[#This Row],[Obdobje veljavnosti posojila \n(Leta)]],MONTH(OPREMA[[#This Row],[Datum nakupa ali zakupa]])-1,DAY(OPREMA[[#This Row],[Datum nakupa ali zakupa]]))-TODAY()))+DATE(YEAR(OPREMA[[#This Row],[Datum nakupa ali zakupa]])+OPREMA[[#This Row],[Obdobje veljavnosti posojila \n(Leta)]],MONTH(OPREMA[[#This Row],[Datum nakupa ali zakupa]]),DAY(OPREMA[[#This Row],[Datum nakupa ali zakupa]]))-1)=DAY(OPREMA[[#This Row],[Datum nakupa ali zakupa]]))),0)","v":24},{"$f":"IFERROR(-(OPREMA[Začetna vrednost]>0)*(OPREMA[Začetna vrednost]<>OPREMA[Polog])*PMT(OPREMA[Obrestna mera posojila]/MesecevVLetu,OPREMA[Obdobje veljavnosti posojila \n(Leta)]*MesecevVLetu,OPREMA[Začetna vrednost]-OPREMA[Polog]),0)","v":634.06458586867973},{"$f":"OPREMA[[#This Row],[Mesečni obrok]]+OPREMA[Mesečni stroški poslovanja]","v":834.06458586867973},{"$f":"IFERROR((OPREMA[Začetna vrednost]>0)*SLN(OPREMA[Začetna vrednost],OPREMA[Pričakovana vrednost ob zaključku pogodbe],OPREMA[Obdobje veljavnosti posojila \n(Leta)]),0)","v":2500},{"$f":"IFERROR(OPREMA[Letna amortizacija (Ravna črta)]/MesecevVLetu,0)","v":208.33333333333334},{"$f":"IFERROR(OPREMA[Začetna vrednost]-(OPREMA[Letna amortizacija (Ravna črta)]*((TODAY()-OPREMA[Datum nakupa ali zakupa])/DniVLetu)),0)","v":25034.246575342466}]
[null,234,"Izdelava modela 2","Glavna panoga","Dobro","Lokalno",4,12500,1500,"2011-03-10",3,7.7499999999999999E-2,120,3000,{"$f":"IFERROR(SUMPRODUCT(--(DAY(ROW(OFFSET($A$1,,,DATE(YEAR(OPREMA[[#This Row],[Datum nakupa ali zakupa]])+OPREMA[[#This Row],[Obdobje veljavnosti posojila \n(Leta)]],MONTH(OPREMA[[#This Row],[Datum nakupa ali zakupa]])-1,DAY(OPREMA[[#This Row],[Datum nakupa ali zakupa]]))-TODAY()))+DATE(YEAR(OPREMA[[#This Row],[Datum nakupa ali zakupa]])+OPREMA[[#This Row],[Obdobje veljavnosti posojila \n(Leta)]],MONTH(OPREMA[[#This Row],[Datum nakupa ali zakupa]]),DAY(OPREMA[[#This Row],[Datum nakupa ali zakupa]]))-1)=DAY(OPREMA[[#This Row],[Datum nakupa ali zakupa]]))),0)","v":14},{"$f":"IFERROR(-(OPREMA[Začetna vrednost]>0)*(OPREMA[Začetna vrednost]<>OPREMA[Polog])*PMT(OPREMA[Obrestna mera posojila]/MesecevVLetu,OPREMA[Obdobje veljavnosti posojila \n(Leta)]*MesecevVLetu,OPREMA[Začetna vrednost]-OPREMA[Polog]),0)","v":343.43280007691891},{"$f":"OPREMA[[#This Row],[Mesečni obrok]]+OPREMA[Mesečni stroški poslovanja]","v":463.43280007691891},{"$f":"IFERROR((OPREMA[Začetna vrednost]>0)*SLN(OPREMA[Začetna vrednost],OPREMA[Pričakovana vrednost ob zaključku pogodbe],OPREMA[Obdobje veljavnosti posojila \n(Leta)]),0)","v":3166.6666666666665},{"$f":"IFERROR(OPREMA[Letna amortizacija (Ravna črta)]/MesecevVLetu,0)","v":263.88888888888886},{"$f":"IFERROR(OPREMA[Začetna vrednost]-(OPREMA[Letna amortizacija (Ravna črta)]*((TODAY()-OPREMA[Datum nakupa ali zakupa])/DniVLetu)),0)","v":6678.5388127853885}]
[null,345,"Izdelava modela 2","Panoga 1","Zadovoljivo","Drugo",1,10000,2500,"2010-09-15",4,0.08,285,1000,{"$f":"IFERROR(SUMPRODUCT(--(DAY(ROW(OFFSET($A$1,,,DATE(YEAR(OPREMA[[#This Row],[Datum nakupa ali zakupa]])+OPREMA[[#This Row],[Obdobje veljavnosti posojila \n(Leta)]],MONTH(OPREMA[[#This Row],[Datum nakupa ali zakupa]])-1,DAY(OPREMA[[#This Row],[Datum nakupa ali zakupa]]))-TODAY()))+DATE(YEAR(OPREMA[[#This Row],[Datum nakupa ali zakupa]])+OPREMA[[#This Row],[Obdobje veljavnosti posojila \n(Leta)]],MONTH(OPREMA[[#This Row],[Datum nakupa ali zakupa]]),DAY(OPREMA[[#This Row],[Datum nakupa ali zakupa]]))-1)=DAY(OPREMA[[#This Row],[Datum nakupa ali zakupa]]))),0)","v":20},{"$f":"IFERROR(-(OPREMA[Začetna vrednost]>0)*(OPREMA[Začetna vrednost]<>OPREMA[Polog])*PMT(OPREMA[Obrestna mera posojila]/MesecevVLetu,OPREMA[Obdobje veljavnosti posojila \n(Leta)]*MesecevVLetu,OPREMA[Začetna vrednost]-OPREMA[Polog]),0)","v":183.09691756126861},{"$f":"OPREMA[[#This Row],[Mesečni obrok]]+OPREMA[Mesečni stroški poslovanja]","v":468.09691756126858},{"$f":"IFERROR((OPREMA[Začetna vrednost]>0)*SLN(OPREMA[Začetna vrednost],OPREMA[Pričakovana vrednost ob zaključku pogodbe],OPREMA[Obdobje veljavnosti posojila \n(Leta)]),0)","v":2250},{"$f":"IFERROR(OPREMA[Letna amortizacija (Ravna črta)]/MesecevVLetu,0)","v":187.5},{"$f":"IFERROR(OPREMA[Začetna vrednost]-(OPREMA[Letna amortizacija (Ravna črta)]*((TODAY()-OPREMA[Datum nakupa ali zakupa])/DniVLetu)),0)","v":4778.767123287671}]
[null,"Skupaj",null,null,null,null,{"$f":"SUBTOTAL(101,OPREMA[Preostalo št. let opravljanja storitev])","v":3.3333333333333335},{"$f":"SUBTOTAL(109,OPREMA[Začetna vrednost])","v":52500},{"$f":"SUBTOTAL(109,OPREMA[Polog])","v":9000},null,{"$f":"SUBTOTAL(101,OPREMA[Obdobje veljavnosti posojila \n(Leta)])","v":3.6666666666666665},{"$f":"SUBTOTAL(101,OPREMA[Obrestna mera posojila])","v":8.5833333333333331E-2},{"$f":"SUBTOTAL(109,OPREMA[Mesečni stroški poslovanja])","v":605},{"$f":"SUBTOTAL(109,OPREMA[Pričakovana vrednost ob zaključku pogodbe])","v":24000},{"$f":"SUBTOTAL(101,OPREMA[Preostalih mesečnih obrokov])","v":19.333333333333332},{"$f":"SUBTOTAL(109,OPREMA[Mesečni obrok])","v":1160.5943035068672},{"$f":"SUBTOTAL(109,OPREMA[Skupni mesečni stroški])","v":1765.5943035068672},{"$f":"SUBTOTAL(101,OPREMA[Letna amortizacija (Ravna črta)])","v":2638.8888888888887},{"$f":"SUBTOTAL(101,OPREMA[Mesečna amortizacija (Ravna črta)])","v":219.90740740740739},{"$f":"SUBTOTAL(109,OPREMA[Trenutna vrednost])","v":36491.552511415524}]

{"sheet":"Vrtilni podatki","index":2,"n_rows":15,"n_cols":8,"rows_kept":15,"cut":false,"hidden":true,"merged":[]}
[null,"Vrtilni podatki"]
[null,"Ta list bi moral ostati skrit. Sprememba zgradbe vrtilne tabele na tem listu lahko povzroči napake pri razčlenjevalnikih nadzorne plošče."]
[]
[null,"Opis elementa\n(Tip in model)","(Vse)"]
[null,"Stanje","(Vse)"]
[null,"Prodajalec","(Vse)"]
[null,"Lokacija","(Vse)"]
[null,"Preostalo št. let opravljanja storitev","(Vse)"]
[null,"Obdobje veljavnosti posojila \n(Leta)","(Vse)"]
[]
[null,"Oznake vrstic","Število","Stroški poslovanja","Znesek plačila","Skupni mesečni stroški ","Mesečna amortizacija","Trenutna vrednost "]
[null,123,1,200,634.06458586867973,834.06458586867973,208.33333333333334,25047.945205479453]
[null,234,1,120,343.43280007691891,463.43280007691891,263.88888888888886,6695.8904109589048]
[null,345,1,285,183.09691756126861,468.09691756126858,187.5,4791.0958904109593]
[null,"Skupna vsota",3,605,1160.5943035068672,1765.5943035068672,659.72222222222217,36534.931506849316]